[Event "Teplice Open 2022"]
[Site "Teplice"]
[Date "2022.06.18"]
[Round "1.8"]
[White "Bullen, Alex"]
[Black "Romanov, Evgeny"]
[Result "0-1"]
[ECO "A50"]
[WhiteElo "2106"]
[BlackElo "2573"]
[Annotator "TA"]
[PlyCount "108"]
[EventDate "2022.06.18"]
[EventType "swiss"]
[EventCountry "CZE"]
[SourceTitle "playchess.com"]
[Source "ChessBase"]
[SourceQuality "1"]
[TimeControl "40/5400+30:1800+30"]

{[%evp 21,108,-23,-19,-54,-36,-54,-55,-82,-88,-84,-88,-126,-126,-128,-131,-131,-124,-133,-133,-125,-134,-134,-130,-131,-122,-135,-123,-134,-127,-134,-128,-157,-145,-143,-143,-134,-125,-242,-246,-246,-237,-258,-266,-443,-436,-295,-214,-210,-207,-198,-145,-208,-194,-510,-500,-467,-358,-1344,-1272,-1770,-1399,-29954,-11893,-29960,-11288,-29970,-29972,-29968,-29973,-29973,-29974,-29973,-29975,-29975,-29975,-29976,-29974,-29975,-29972,-29976,-29977,-29977,-29978,-29979,-29979,-29979,-29980,-29980,-29974]} 1. d4 {[%emt 0:00:03]} Nf6 {[%emt 0:00:36]} 2. Nf3 {[%emt 0:00:10]} b6 {[%emt 0:00:42]} 3. g3 {[%emt 0:04:20]} Bb7 {[%emt 0:00:35]} 4. Bg2 {[%emt 0:00:07]} g6 {[%emt 0:00:27]} 5. O-O {[%emt 0:00:16]} Bg7 {[%emt 0:00:24]} 6. c4 {[%emt 0:01:57]} O-O {[%emt 0:00:10]} 7. Nc3 {[%emt 0:00:04]} Ne4 {[%emt 0:00:06]} 8. Nxe4 {[%emt 0:07:03]} Bxe4 {[%emt 0:00:45]} 9. b3 {[%emt 0:04:02]} c5 {[%emt 0:02:27]} 10. Bb2 {[%emt 0:00:45]} Nc6 {[%emt 0:00:14]} 11. e3 {[%emt 0:00:56]} d5 {[%emt 0:00:40]} 12. Qc1 {[%emt 0:03:50] A50: Queen's Fianchetto Defence (1 d4 Nf6 2 c4 b6).} cxd4 {[%emt 0:02:11]} 13. Nxd4 {[%emt 0:01:16]} Nxd4 {[%emt 0:00:26] [#]} 14. exd4 $146 {[%emt 0:10:23] Black is slightly better.} ({Predecessor:} 14. Bxd4 Bxd4 15. exd4 Bxg2 16. Kxg2 dxc4 17. Qxc4 Rc8 18. Qa4 Qd5+ 19. Kg1 Rc7 20. Rfe1 {0-1 (85) Yanchenko,R (2478)-Melkumyan,H (2658) Chess.com INT 2019}) 14... Bxg2 {[%emt 0:01:05]} 15. Kxg2 {[%emt 0:00:07]} Rc8 {[%emt 0:00:57][%cal Ba8c8,Bc8c4,Bc4a4][%mdl 32]} 16. Rd1 {[%emt 0:04:24]} dxc4 {[%emt 0:02:06]} 17. bxc4 {[%emt 0:00:09]} Qc7 {[%emt 0:00:15]} 18. d5 {[%emt 0:10:57]} Qxc4 {[%emt 0:01:03]} 19. Qxc4 {[%emt 0:00:30]} Rxc4 {[%emt 0:00:02]} 20. Bxg7 {[%emt 0:00:16]} Kxg7 $17 {[%emt 0:00:03][%mdl 4096] Endgame KRR-KRR} 21. d6 {[%emt 0:00:39]} exd6 {[%emt 0:03:15]} 22. Rxd6 {[%emt 0:00:08]} Rfc8 {[%emt 0:01:33]} 23. Rd7 {[%emt 0:03:23]} Ra4 {[%emt 0:02:55]} 24. Re1 {[%emt 0:02:38]} Rxa2 {[%emt 0:01:30]} 25. Ree7 {[%emt 0:01:20][%csl LRa7,LRf7]} Rf8 {[%emt 0:00:08]} 26. Rxa7 {[%emt 0:00:15]} Rxa7 {[%emt 0:00:08]} 27. Rxa7 {[%emt 0:00:05] [#] KR-KR} Rb8 {[%emt 0:00:05] Prevents Rb7.} 28. Kf3 {[%emt 0:01:10]} b5 {[%emt 0:00:09][%cal Bb6b5,Bb5b4,Bb4b3,Bb3b2][%mdl 32] Against Ra4} 29. Ke3 {[%emt 0:01:02]} (29. Ra3 $17) 29... b4 $19 {[%emt 0:00:47]} 30. Ra2 {[%emt 0:04:01]} Kf6 {[%emt 0:01:28]} 31. Ra6+ {[%emt 0:06:55]} Kg5 {[%emt 0:02:00]} 32. Kd2 $2 {[%emt 0:00:28]} (32. Ra2 {was called for.}) 32... b3 {[%emt 0:00:37] White must now prevent ...b2.} 33. Kc1 {[%emt 0:00:34]} b2+ {[%emt 0:00:49]} 34. Kb1 {[%emt 0:00:07]} f5 {[%emt 0:01:49]} 35. Ra7 {[%emt 0:06:55]} h6 {[%emt 0:00:22] aiming for ...Rb3.} 36. Ra4 {[%emt 0:17:36] [#]} (36. h3 $17) 36... Rb3 $1 {[%emt 0:01:24] And now ...Rf3 would win.} 37. h4+ $2 {[%emt 0:02:11]} (37. Rf4) 37... Kh5 {[%emt 0:01:14]} 38. Rf4 {[%emt 0:00:10]} Rb5 {[%emt 0:00:15] Strongly threatening ...g5.} 39. Rd4 $2 {[%emt 0:01:47]} (39. Ra4 Re5 40. Ra3) 39... g5 {[%emt 0:00:25]} 40. hxg5 {[%emt 0:05:14]} hxg5 {[%emt 0:01:23] ...Rb3 is the strong threat.} 41. Rc4 {[%emt 0:04:05]} Rb3 {[%emt 0:00:53] ( -> ...Rf3)} 42. Rd4 {[%emt 0:02:38]} Rf3 {[%emt 0:00:42]} 43. g4+ {[%emt 0:05:28]} fxg4 {[%emt 0:01:20] Black mates.} 44. Rd2 {[%emt 0:00:08]} Kh4 {[%emt 0:02:40]} 45. Kxb2 {[%emt 0:00:15]} g3 {[%emt 0:00:41]} 46. fxg3+ {[%emt 0:00:12]} Kxg3 {[%emt 0:00:04]} 47. Rd8 {[%emt 0:01:07]} g4 {[%emt 0:00:30][%cal Bg5g4,Bg4g3,Bg3g2][%mdl 32]} 48. Kc2 {[%emt 0:00:05]} Re3 {[%emt 0:00:27]} 49. Kd2 {[%emt 0:00:11]} Re5 {[%emt 0:00:08]} 50. Rf8 {[%emt 0:00:16]} Kg2 {[%emt 0:00:12]} 51. Rg8 {[%emt 0:00:21]} g3 {[%emt 0:00:07]} 52. Rf8 {[%emt 0:00:05]} Kg1 {[%emt 0:00:08]} 53. Rg8 {[%emt 0:00:14]} g2 {[%emt 0:00:06]} 54. Rf8 {[%emt 0:00:04]} Kh2 {[%emt 0:00:58] Black took control after the opening.  Weighted Error Value: White=0.88/Black=0.03 (flawless)} 0-1

[Event "Teplice Open 2022"]
[Site "Teplice"]
[Date "2022.06.18"]
[Round "1.9"]
[White "Sanal, Vahap"]
[Black "Wenner, Tobias"]
[Result "1-0"]
[ECO "B10"]
[WhiteElo "2575"]
[BlackElo "2104"]
[Annotator "TA"]
[PlyCount "60"]
[EventDate "2022.06.18"]
[EventType "swiss"]
[EventCountry "CZE"]
[SourceTitle "playchess.com"]
[Source "ChessBase"]
[SourceQuality "1"]
[TimeControl "40/5400+30:1800+30"]

{[%evp 9,60,-5,0,0,28,22,25,23,25,22,27,28,32,13,10,6,26,14,14,12,32,34,31,29,49,13,185,177,170,169,240,170,204,192,195,193,281,245,264,254,386,347,364,360,360,366,367,351,352,372,452,374,367]} 1. e4 {[%emt 0:00:03]} c6 {[%emt 0:00:07]} 2. Nf3 {[%emt 0:00:15]} d5 {[%emt 0:00:09]} 3. d3 {[%emt 0:00:08]} Bg4 {[%emt 0:05:09]} 4. Qe2 {[%emt 0:01:42]} e6 {[%emt 0:00:58]} 5. Nbd2 {[%emt 0:00:57]} Nf6 {[%emt 0:05:24]} 6. h3 {[%emt 0:00:10] [#] B10: Caro-Kann: 2 d3 and 2 c4.} Bxf3 $146 {[%emt 0:00:31]} ({Predecessor:} 6... Bh5 7. g4 dxe4 8. dxe4 Bg6 9. Ne5 Nbd7 10. Nxg6 hxg6 11. Bg2 Qc7 12. Nc4 Nb6 {½-½ (27) Claverie,R (2470)-Leskovar Raimondi,M (2257) Mar del Plata 2012}) 7. Nxf3 {[%emt 0:00:07]} c5 {[%emt 0:04:29]} 8. g3 {[%emt 0:01:11] White has an edge.} Nc6 {[%emt 0:00:32]} 9. Bg2 {[%emt 0:00:11]} Be7 {[%emt 0:03:02]} 10. O-O {[%emt 0:00:09]} O-O {[%emt 0:00:57]} 11. e5 {[%emt 0:01:08]} Nd7 {[%emt 0:03:07]} 12. c4 {[%emt 0:01:50]} d4 {[%emt 0:07:20]} 13. h4 {[%emt 0:01:06][%cal Bh3h4,Bh4h5][%mdl 32]} Qc7 {[%emt 0:00:23][%cal Rd7e5]} 14. Bf4 {[%emt 0:00:54]} Rae8 {[%emt 0:02:37]} 15. h5 {[%emt 0:02:35]} h6 {[%emt 0:04:05]} 16. Rae1 {[%emt 0:02:40]} Qa5 {[%emt 0:03:22]} 17. a3 {[%emt 0:00:40]} f5 $2 {[%emt 0:07:27] A mistake that costs the game.} (17... Rc8 $11) 18. exf6 $1 $18 {[%emt 0:01:23]} Bxf6 {[%emt 0:00:09]} 19. Nh2 {[%emt 0:00:30]} e5 {[%emt 0:03:27]} (19... Qb6 $142 20. Ng4 Bg5) 20. Bd2 {[%emt 0:01:48]} Qd8 {[%emt 0:03:39]} 21. Qg4 {[%emt 0:00:54] Black must now prevent Bxh6.} Kh8 {[%emt 0:01:43]} 22. Be4 {[%emt 0:01:42] [#] Qg6 is the strong threat.} Rg8 {[%emt 0:10:36]} (22... Be7 $142) 23. Qf5 {[%emt 0:01:48][%csl Ge4][%cal Rf5h7]} Nf8 {[%emt 0:00:17] Inhibits Qh7+.} 24. Ng4 $40 {[%emt 0:00:16][%mdl 128] White goes for the king.} Ne7 {[%emt 0:02:53] [#]} (24... Re6 {was worth a try.} 25. b4 Ne7) 25. Nxh6 $1 {[%emt 0:04:52][%cal Rh6f7][%mdl 512]} Nxf5 {[%emt 0:00:17]} 26. Nf7+ {[%emt 0:00:03]} Kh7 {[%emt 0:00:11]} 27. Nxd8 {[%emt 0:00:15]} ({Don't play} 27. Bxf5+ g6 28. hxg6+ (28. Nxd8 gxf5 29. Nxb7 Rb8 $18) 28... Nxg6 29. Nxd8 Bxd8 $18) 27... Rxd8 {[%emt 0:02:29]} 28. Bxf5+ {[%emt 0:00:04] This bishop pair is nice.} g6 {[%emt 0:01:25]} 29. Be4 {[%emt 0:00:04]} b6 {[%emt 0:06:12]} 30. g4 {[%emt 0:01:16]} Kh8 {[%emt 0:03:08] Weighted Error Value: White=0.12 (very precise) /Black=0.36} 1-0

[Event "Teplice Open 2022"]
[Site "Teplice"]
[Date "2022.06.18"]
[Round "1.10"]
[White "Chval, Zdenek sen."]
[Black "Postny, Evgeny"]
[Result "0-1"]
[ECO "A46"]
[WhiteElo "2103"]
[BlackElo "2563"]
[Annotator "TA"]
[PlyCount "34"]
[EventDate "2022.06.18"]
[EventType "swiss"]
[EventCountry "CZE"]
[SourceTitle "playchess.com"]
[Source "ChessBase"]
[SourceQuality "1"]
[TimeControl "40/5400+30:1800+30"]

{[%evp 9,34,10,6,-1,12,0,-3,-21,-12,0,-9,-12,-19,-98,0,0,123,-375,-378,-361,-377,-470,-458,-441,-445,-481,-425]} 1. d4 {[%emt 0:00:08]} Nf6 {[%emt 0:00:06]} 2. Nf3 {[%emt 0:00:10]} e6 {[%emt 0:00:19]} 3. Bf4 {[%emt 0:03:18]} c5 {[%emt 0:00:27]} 4. e3 {[%emt 0:00:30]} Qb6 {[%emt 0:00:54]} 5. b3 {[%emt 0:13:43]} Nc6 {[%emt 0:08:23]} 6. c3 {[%emt 0:04:04] A46: 1 d4 Nf6 2 Nf3 e6: Torre, London and Colle Systems.} d5 {[%emt 0:07:40]} 7. Nbd2 {[%emt 0:03:41]} Nh5 $5 {[%emt 0:05:38][%mdl 4] An interesting side line.} 8. Bg5 {[%emt 0:07:25] [#] The position is equal.} (8. Be5 $5) 8... h6 $146 {[%emt 0:00:13]} ({Predecessor:} 8... Be7 9. Bd3 cxd4 10. cxd4 Nb4 11. Qe2 Nxd3+ 12. Qxd3 f6 13. Bh4 g5 14. Bg3 Qc6 {0-1 (44) Furey,C-Guenzel,S CServe email 1995}) 9. Bh4 {[%emt 0:00:05]} g5 {[%emt 0:00:08][%cal Bg7g5,Bg5h4][%mdl 32]} 10. Ne5 $1 {[%emt 0:09:06]} cxd4 {[%emt 0:14:40]} 11. Nxf7 {[%emt 0:16:07] [#]} (11. Qxh5 $11 Nxe5 12. exd4) 11... Nf6 $1 {[%emt 0:02:30]} 12. Nxh8 $11 {[%emt 0:01:29][%cal Od1c2] Strongly threatening Qc2!} dxc3 {[%emt 0:00:12] [#]} (12... dxe3 $11 {remains equal.} 13. fxe3 (13. Bg3 exd2+ 14. Qxd2 Ne4 $17) 13... Qxe3+ 14. Be2 (14. Qe2 $2 Qxc3 15. Rb1 gxh4 $19) 14... gxh4) 13. Bd3 $2 {[%emt 0:32:23][%mdl 8192] This move loses the game for White.} cxd2+ $19 {[%emt 0:01:51]} ({Inferior is} 13... gxh4 14. Nf3 $11) 14. Kf1 {[%emt 0:01:03]} gxh4 {[%emt 0:00:52]} 15. Bg6+ {[%emt 0:00:58]} Ke7 {[%emt 0:00:41] Hoping for ...Bg7. Black is clearly winning.} 16. Bd3 {[%emt 0:00:40]} Ne5 {[%emt 0:03:08]} 17. Qxd2 {[%emt 0:02:00]} Bg7 {[%emt 0:00:24] Weighted Error Value: White=0.55/Black=0.27 (precise)} 0-1

[Event "Teplice Open 2022"]
[Site "Teplice"]
[Date "2022.06.18"]
[Round "1.11"]
[White "Laurusas, Tomas"]
[Black "Vishal Choudary B"]
[Result "1-0"]
[ECO "A80"]
[WhiteElo "2567"]
[BlackElo "2101"]
[Annotator "TA"]
[PlyCount "61"]
[EventDate "2022.06.18"]
[EventType "swiss"]
[EventCountry "CZE"]
[SourceTitle "playchess.com"]
[Source "ChessBase"]
[SourceQuality "1"]
[TimeControl "40/5400+30:1800+30"]

{[%evp 9,61,50,51,50,52,43,45,56,42,40,56,42,66,47,72,55,62,56,83,44,68,32,63,41,58,51,54,44,58,63,84,77,91,116,103,118,112,130,143,96,296,294,901,878,1121,1024,1278,843,803,545,528,528,29993,29994]} 1. d4 {[%emt 0:00:03]} f5 {[%emt 0:00:40]} 2. Bg5 {[%emt 0:05:02]} c6 {[%emt 0:00:24]} 3. e3 {[%emt 0:00:38]} Qb6 {[%emt 0:00:34]} 4. Qc1 g6 5. Nf3 Bg7 {[#]} 6. Bc4 $146 {A80: Dutch Defence: Unusual White second moves.} ({Predecessor:} 6. Nbd2 Nf6 7. Bc4 d5 8. Bb3 Be6 9. O-O Nbd7 10. c4 O-O 11. Ne5 Rad8 12. Ndf3 {0-1 (36) McKellar,D (1710)-Anderson,M (1937) San Francisco 2016}) 6... d5 {[%emt 0:00:49]} 7. Bb3 {[%emt 0:03:12]} Nd7 {[%emt 0:01:16]} 8. c4 {[%emt 0:14:52] White is slightly better.} e6 {[%emt 0:06:15]} 9. O-O {[%emt 0:06:10]} Ngf6 {[%emt 0:02:26]} 10. Nc3 {[%emt 0:02:36][%cal Bb1c3,Bc3e2,Be2f4,Bf4d3,Bd3e5][%mdl 32]} O-O {[%emt 0:06:52]} 11. Qc2 {[%emt 0:08:02]} Kh8 {[%emt 0:12:23]} 12. Ne2 {[%emt 0:00:39]} Ne4 {[%emt 0:04:59]} 13. Nf4 {[%emt 0:02:07]} Ndf6 {[%emt 0:03:59]} 14. h4 {[%emt 0:06:08]} Ng4 {[%emt 0:00:00]} 15. Nd3 {[%emt 0:12:17]} h6 {[%emt 0:03:56]} 16. Bf4 {[%emt 0:00:09]} (16. c5 $5 {[%cal Rc5b6]} Qa5 17. Bf4 $14) 16... Qd8 {[%emt 0:00:24]} 17. Nfe5 {[%emt 0:08:31]} Nxe5 {[%emt 0:08:14]} 18. Nxe5 {[%emt 0:01:35]} Kh7 {[%emt 0:07:55]} 19. f3 $36 {[%emt 0:05:28][%mdl 2048] White has some pressure.} Nd6 {[%emt 0:08:54]} 20. cxd5 {[%emt 0:00:53]} exd5 {[%emt 0:00:00] [#]} 21. Nxc6 $1 {[%emt 0:05:09]} bxc6 {[%emt 0:00:00]} 22. Qxc6 {[%emt 0:00:02]} Nb7 {[%emt 0:30:13]} 23. h5 {[%emt 0:00:38]} (23. Bxd5 Rf6 24. Qc4 Na5 $15) (23. Qxd5 $6 a5 $11) 23... gxh5 {[%emt 0:00:00]} 24. Rac1 {[%emt 0:15:53] White is much more active.} ({Much worse is} 24. Qxd5 $6 a5 $11) (24. Bxd5 Rf6 25. Qb5 a6 $15) (24. Rfc1 $142) 24... Qh4 $2 {[%emt 0:00:00] This costs Black the game.} (24... a5 $16) 25. Qxd5 $18 {[%emt 0:00:00] [#] Hoping for Rc7.} ({Don't take} 25. Bxd5 $6 Rd8 26. Bf7 Qf6 27. Qxf6 (27. Bxh5 Qe6 $16) 27... Bxf6 $18) 25... a5 $2 {[%emt 0:00:00]} (25... Rd8) 26. Rc7 {[%emt 0:00:00]} Kh8 27. Rfc1 {[%emt 0:00:00][%cal Oc7g7] Threatening mate with Rxg7!} Rd8 {[%emt 0:02:22]} 28. Qf7 {[%emt 0:01:52][%csl Gc7][%cal Rf7g7]} Qf6 {[%emt 0:01:16]} 29. Qxf6 {[%emt 0:00:20]} Bxf6 {[%emt 0:00:05]} 30. R1c6 {[%emt 0:00:14]} Bg7 {[%emt 0:00:48]} 31. Be5 {[%emt 0:00:38] Weighted Error Value: White=0.22 (precise) /Black=0.45} 1-0

[Event "Teplice Open 2022"]
[Site "Teplice"]
[Date "2022.06.18"]
[Round "1.12"]
[White "Bosbach, Gerhard"]
[Black "Stocek, Jiri"]
[Result "0-1"]
[ECO "A25"]
[WhiteElo "2096"]
[BlackElo "2533"]
[Annotator "TA"]
[PlyCount "48"]
[EventDate "2022.06.18"]
[EventType "swiss"]
[EventCountry "CZE"]
[SourceTitle "playchess.com"]
[Source "ChessBase"]
[SourceQuality "1"]
[TimeControl "40/5400+30:1800+30"]

{[%evp 9,48,5,20,22,22,22,12,11,18,13,17,0,46,33,55,8,10,-50,-51,-99,-98,-98,-99,-99,-99,-97,-92,-94,-74,-79,-77,-74,-72,-85,-78,-114,-100,-197,-192,-366,-354]} 1. c4 {[%emt 0:00:03]} e5 {[%emt 0:01:05]} 2. g3 {[%emt 0:00:27]} Nc6 {[%emt 0:00:17]} 3. Bg2 {[%emt 0:00:41]} Bc5 {[%emt 0:00:19]} 4. Nc3 {[%emt 0:02:34]} d6 {[%emt 0:00:39]} 5. a3 {[%emt 0:01:57]} a5 6. Nf3 {A25: English Opening vs King's Indian with ...Nc6 but without early d3.} Bf5 {[%emt 0:06:02]} 7. d3 {[%emt 0:08:49]} Qd7 {[%emt 0:03:06] [#]} 8. e3 $146 {[%emt 0:04:39] The position is equal.} ({Predecessor:} 8. O-O Nge7 9. Be3 Bxe3 10. fxe3 O-O 11. Qd2 Bh3 12. d4 Bxg2 13. Kxg2 Qg4 14. d5 {0-1 (34) Kropp,J (1859)-Hoeffer,D (2264) Bremen 2018}) 8... Nf6 {[%emt 0:08:17][%cal Bg8f6,Bf6e4,Be4c3,Bc3d1][%mdl 32]} 9. O-O {[%emt 0:03:21]} O-O {[%emt 0:05:35]} 10. d4 {[%emt 0:04:12]} exd4 {[%emt 0:00:42]} (10... Bb6 $11) 11. exd4 $14 {[%emt 0:00:09]} Bb6 {[%emt 0:00:53]} 12. Bg5 {[%emt 0:05:40]} (12. Be3 $14) 12... Ne4 $11 {[%emt 0:03:21]} 13. d5 {[%emt 0:06:59]} (13. Be3 $11) 13... Nxc3 $1 $15 {[%emt 0:08:15]} 14. dxc6 {[%emt 0:04:37]} (14. bxc3 $15 Ne5 15. Nxe5 dxe5 16. Qe2) 14... Nxd1 $17 {[%emt 0:00:07]} 15. cxd7 {[%emt 0:00:12]} Nxb2 {[%emt 0:00:48]} 16. d8=Q {[%emt 0:00:30]} Raxd8 {[%emt 0:00:26]} 17. Bxd8 {[%emt 0:00:08]} Rxd8 {[%emt 0:00:07]} 18. Nd2 {[%emt 0:01:37]} c6 {[%emt 0:08:40]} 19. Ra2 {[%emt 0:02:04] [#]} Na4 {[%emt 0:05:45] Black is much more active. The white rooks are badly placed.} 20. Be4 {[%emt 0:07:22]} Bc8 {[%emt 0:00:46]} 21. Rc1 {[%emt 0:03:51]} Re8 {[%emt 0:02:24]} 22. Rac2 {[%emt 0:10:25]} Nc5 {[%emt 0:13:10]} 23. Rb1 {[%emt 0:10:05]} (23. Rb2 $17 Bd8 24. Re1) 23... Ba7 $19 {[%emt 0:02:25]} ({And not} 23... Nxe4 24. Nxe4 Bc7 25. Re2 $11 (25. f3 f5 $11)) 24. Re1 {[%emt 0:16:00] [#]} (24. Bf3) 24... Bf5 $1 {[%emt 0:01:01] Weighted Error Value: White=0.32/Black=0.07 (flawless)} 0-1

[Event "Teplice Open 2022"]
[Site "Teplice"]
[Date "2022.06.18"]
[Round "1.13"]
[White "Ali Marandi, Cemil Can"]
[Black "Laith, Kasib"]
[Result "1-0"]
[ECO "B07"]
[WhiteElo "2532"]
[BlackElo "2078"]
[Annotator "TA"]
[PlyCount "35"]
[EventDate "2022.06.18"]
[EventType "swiss"]
[EventCountry "CZE"]
[SourceTitle "playchess.com"]
[Source "ChessBase"]
[SourceQuality "1"]
[TimeControl "40/5400+30:1800+30"]

{[%evp 9,35,34,53,52,65,66,77,31,49,54,131,137,209,216,384,371,385,383,377,283,421,438,689,468,687,675,933,835]} 1. d4 {[%emt 0:00:03]} d6 {[%emt 0:00:49]} 2. e4 {[%emt 0:00:07]} Nf6 {[%emt 0:00:09]} 3. Nc3 {[%emt 0:00:12]} g6 {[%emt 0:00:11]} 4. Bf4 {[%emt 0:01:48]} c6 {[%emt 0:01:14]} 5. Qd2 {[%emt 0:00:34]} b5 {[%emt 0:01:39]} 6. Bd3 {[%emt 0:00:57] B07: Pirc Defence: Miscellaneous Systems.} Nbd7 {[%emt 0:04:15]} 7. Nf3 {[%emt 0:01:53] Prevents e5.} Bg7 {[%emt 0:14:37]} 8. e5 {[%emt 0:04:08] [#]} (8. O-O $16) 8... b4 $146 {[%emt 0:06:37] White must now prevent ...dxe5.} ({Predecessor:} 8... dxe5 9. dxe5 Nh5 10. e6 fxe6 11. Ng5 Nxf4 12. Qxf4 Nf6 13. Nxh7 Nd5 14. Bxg6+ Kd7 15. Nxd5 cxd5 {0-1 (41) Lopez de Lerma,R-Bazan Solera,M Gijon 2000}) 9. Ne4 {[%emt 0:04:22]} Nd5 {[%emt 0:12:23]} (9... dxe5 $1 $14 10. Nxe5 (10. dxe5 Nxe4 11. Bxe4 Qb6 $14) 10... Nd5) 10. Bh6 $16 {[%emt 0:03:19] White is more active.} O-O {[%emt 0:05:58] [#]} (10... Kf8 $16 11. exd6 exd6) 11. h4 $1 $18 {[%emt 0:02:33][%cal Bh2h4,Bh4h5][%mdl 32] Hoping for h5.} (11. exd6 exd6 12. O-O (12. Nxd6 $2 Qe7+ 13. Ne4 f5 $19) (12. Bxg7 Kxg7 13. O-O N7b6 $11) 12... N7b6 $14) (11. Bxg7 $6 Kxg7 12. h4 (12. exd6 exd6 13. O-O N7b6 $11) 12... h5 $16) 11... f6 $2 {[%emt 0:14:35]} (11... dxe5 {was worth a try.} 12. Bxg7 Kxg7) 12. h5 {[%emt 0:01:55] hxg6 is the strong threat.} g5 {[%emt 0:06:51]} 13. Bxg7 {[%emt 0:01:10]} Kxg7 {[%emt 0:00:06]} 14. e6 {[%emt 0:08:18] And now Nexg5 would win.} N7b6 {[%emt 0:05:36]} (14... Nf4 $142) 15. Nexg5 $1 {[%emt 0:01:11] White is clearly winning.} fxg5 (15... h6 $142 16. Nf7 Rxf7) 16. Qxg5+ {[%emt 0:01:06]} ({Worse is} 16. h6+ Kh8 17. Nxg5 (17. Qxg5 Rg8 $15) 17... Nf4 18. Nf7+ Rxf7 19. exf7 Nxd3+ 20. Qxd3 Be6 $15) 16... Kh8 {[%emt 0:05:28]} 17. Qh6 {[%emt 0:00:06][%csl Gd3][%cal Rh6h7] [#]} Nf6 {[%emt 0:01:09]} 18. Ng5 {[%emt 0:00:20] Weighted Error Value: White=0.10 (very precise) /Black=0.79} 1-0

[Event "Teplice Open 2022"]
[Site "Teplice"]
[Date "2022.06.18"]
[Round "1.14"]
[White "Iliaguev, Daniel"]
[Black "Pultinevicius, Paulius"]
[Result "0-1"]
[ECO "A20"]
[WhiteElo "2091"]
[BlackElo "2536"]
[Annotator "TA"]
[PlyCount "50"]
[EventDate "2022.06.18"]
[EventType "swiss"]
[EventCountry "CZE"]
[SourceTitle "playchess.com"]
[Source "ChessBase"]
[SourceQuality "1"]
[TimeControl "40/5400+30:1800+30"]

{[%evp 9,50,0,2,0,0,-19,-16,-12,22,-3,0,0,11,9,6,0,0,0,0,-34,-12,-33,8,-10,5,-105,-104,-98,-105,-103,-97,-97,-98,-140,-144,-130,-133,-141,-128,-558,-560,-870,-770]} 1. g3 {[%emt 0:00:02]} e5 {[%emt 0:02:07]} 2. c4 {[%emt 0:00:03]} c6 {[%emt 0:00:03]} 3. Bg2 {[%emt 0:00:45]} d5 {[%emt 0:01:07]} 4. cxd5 {[%emt 0:00:03]} cxd5 {[%emt 0:00:06]} 5. d4 {[%emt 0:00:12]} e4 {[%emt 0:03:25]} 6. a3 {[%emt 0:00:02] [#] A20: English Opening: 1...e5.} Bd6 $146 {[%emt 0:05:49]} ({Predecessor:} 6... Nf6 7. Nc3 Be7 8. f3 Bf5 9. Nh3 exf3 10. exf3 Nc6 11. g4 Be6 12. Be3 Bd6 13. Nf4 h6 14. Nxe6 fxe6 {½-½ (115) Poley,V (2327)-Hector,J (2438) Norrkoping 2022}) 7. Nh3 {[%emt 0:02:07]} Nc6 {[%emt 0:03:42]} 8. Nc3 {[%emt 0:11:24] The position is equal.} Nf6 {[%emt 0:12:17]} 9. O-O {[%emt 0:11:40]} h6 {[%emt 0:06:30] Against Bg5} 10. Nf4 {[%emt 0:12:45]} Bxf4 {[%emt 0:02:03]} 11. Bxf4 {[%emt 0:00:04]} O-O {[%emt 0:00:49]} 12. b4 {[%emt 0:10:23]} Be6 {[%emt 0:06:52]} 13. f3 {[%emt 0:14:22]} exf3 {[%emt 0:01:48]} 14. Bxf3 {[%emt 0:01:55]} Rc8 {[%emt 0:11:49]} 15. Rc1 {[%emt 0:06:33]} Qe7 {[%emt 0:06:18]} 16. Qd2 {[%emt 0:06:12]} Rfd8 {[%emt 0:00:53]} 17. Be5 {[%emt 0:08:02] [#]} (17. Bg2 $1 $11 {keeps the balance.}) 17... Ne4 $1 $17 {[%emt 0:07:51]} 18. Bxe4 {[%emt 0:02:41]} dxe4 {[%emt 0:00:17]} 19. Qe3 {[%emt 0:03:35]} ({Not} 19. Qf4 $2 Bh3 20. Rfe1 f6 $19) 19... Nxe5 20. dxe5 {[%emt 0:00:11]} Bh3 {[%emt 0:12:25][%csl LRe5,LRf1]} 21. Rf4 {[%emt 0:03:20]} Qxe5 {[%emt 0:03:39][%cal Oc8c3] White must now prevent ...Rxc3!} 22. Rxe4 {[%emt 0:00:02]} Qf6 {[%emt 0:01:41][%cal Oc8c3] Strongly threatening ...Rxc3! Black is more active.} 23. Rf4 {[%emt 0:03:40]} Qc6 {[%emt 0:01:59][%csl Gh3][%cal Rc6g2]} 24. Qf3 {[%emt 0:00:02][%mdl 8192] [#] Prevents Qg2+.} (24. Rf3 $17) 24... Qb6+ $1 $19 {[%emt 0:01:04]} 25. e3 {[%emt 0:01:03]} Rd3 {[%emt 0:01:21][%csl LRc3,LRe3] Weighted Error Value: White=0.71/Black=0.06 (flawless)} 0-1